Cogmind - Beta 13 @@@ ROGUE MODE // 2024.07.24 @ 11:58:22 Player: Wonda Result: Destroyed by D-53 Grenadier with Mini Grenade Launcher Performance ------------- Evolutions (0) 0 Regions Visited (2) 400 Robots Destroyed (10) 50 Value Destroyed (323) 323 Prototype IDs (2) 40 Alien Tech Used (0) 0 Bonus (71) 71 TOTAL SCORE: 884 Bonus ------- Follower Combat Kills 71 Cogmind --------- Core Integrity 0/250 Matter 181/300 Energy 99/100 System Corruption 5% Temperature Cool (9) Movement Core (50) Location -10/Mines Parts ------- > --- POWER (1) -------- (None) > --- PROPULSION (2) --- (None) > --- UTILITY (2) ------ Targeting Computer > --- WEAPON (2) ------- (None) > --- INVENTORY (5) ---- Light Ion Engine Aluminum Leg Small Storage Unit Light Assault Rifle Shotgun Peak State ------------ > --- POWER ------------ Ion Engine > --- PROPULSION ------- Light Treads Light Treads > --- UTILITY ---------- Large Storage Unit Hardened Light Armor Plating > --- WEAPON ----------- Shotgun Shotgun > --- INVENTORY -------- Light Ion Engine Small Storage Unit Small Storage Unit EM Pulse Gun EM Pulse Gun Medium Laser [Rating: 10] Favorites ----------- Power Ion Engine Engine Ion Engine Propulsion Light Treads Treads Light Treads Utility Targeting Computer Storage Large Storage Unit Processor Targeting Computer Protection Hardened Light Armor Plating Weapon EM Pulse Gun Energy Gun EM Pulse Gun Ballistic Gun Shotgun Build | -11 -10 -10 ------- Run | Yrd Mat Min Slots Evolved . | . . . Power . | . . . Propulsion . | . . . Utility . | . . . Weapon . | . . . Parts Attached 20 | 7 13 . Power 1 | 1 . . Engine 1 | 1 . . Core . | . . . Reactor . | . . . Propulsion 5 | 2 3 . Treads 5 | 2 3 . Leg . | . . . Wheel . | . . . Hover . | . . . Flight . | . . . Utility 6 | 1 5 . Device . | . . . Storage 3 | 1 2 . Processor 2 | . 2 . Hackware . | . . . Protection 1 | . 1 . Artifact . | . . . Weapon 8 | 3 5 . Energy Gun 3 | 3 . . Energy Cannon . | . . . Ballistic Gun 5 | . 5 . Ballistic Cannon . | . . . Launcher . | . . . Special Weapon . | . . . Impact Weapon . | . . . Slashing Weapon . | . . . Piercing Weapon . | . . . Special Melee Weapon . | . . . Unidentified Prototypes . | . . . Parts Lost 6 | . . 6 Power 1 | . . 1 Propulsion 2 | . . 2 Utility 1 | . . 1 Weapon 2 | . . 2 Highest Loss Streak 6 | . . 6 To Critical Strikes . | . . . Average Slot Usage (%) 87 | . 85 97 Engine 14 | . 14 14 Treads 23 | . 23 25 Storage 10 | . 11 . Processor 9 | . 6 28 Protection 1 | . 1 . Energy Gun 8 | . 9 . Ballistic Gun 19 | . 17 28 Naked Turns . | . . . Heaviest Build 36 | 14 36 8 Greatest Support 40 | 40 40 40 Greatest Overweight (x) 9 | 1 9 2 Average Overweight (x) . | . . . Largest Inventory Capacity 15 | 8 15 5 Average Capacity 10 | 6 11 5 Most Carried 13 | 2 13 5 Average Carried 5 | 1 5 5 Final Capacity 8 | 8 5 5 Final Carried 5 | 2 5 5 Class Distribution -------------------- 100% | Mutant Dominant Class ---------------- Mutant | -10/Materials Mutant | -10/Mines Resources | -11 -10 -10 ----------- Run | Yrd Mat Min Matter Collected 348 | 194 154 . Remotely . | . . . Salvage Created 202 | . 202 . Parts 14 | . 14 . Haulers Intercepted . | . . . Recyclers Shooed . | . . . Parts Field Recycled . | . . . Retrieved Matter . | . . . Parts Self-Destructed . | . . . Prevented . | . . . Kills | -11 -10 -10 ------- Run | Yrd Mat Min Combat Hostiles Destroyed 7 | . 7 . Guns 6 | . 6 . AOE 1 | . 1 . Classes Destroyed 5 | . 5 . Worker 1 | . 1 . Operator 1 | . 1 . Watcher 1 | . 1 . Swarmer 2 | . 2 . Grunt 5 | . 5 . Best Kill Streak 4 | . 4 . Combat Bots Only 4 | . 4 . Max Kills in Single Turn 3 | . 3 . Gunslinging . | . . . Exploded 1 | . 1 . Melee . | . . . Uniques/NPCs Destroyed . | . . . Combat | -11 -10 -10 -------- Run | Yrd Mat Min Hostile Shots Fired 72 | . 27 45 Missed 19 | . 5 14 Damage Taken 934 | . 356 578 Core 265 | . 35 230 Absorbed by Shields . | . . . Core Remaining (%) 100 | 100 . . Volleys Fired 27 | . 22 5 Largest 2 | . 2 2 Hottest 80 | . 80 40 Shots Fired 54 | . 44 10 Gun 54 | . 44 10 Cannon . | . . . Launcher . | . . . Special . | . . . Kinetic 34 | . 24 10 Thermal . | . . . Explosive . | . . . Electromagnetic 20 | . 20 . Robot Hit Streak 4 | . 4 3 Robot Miss Streak 5 | . 5 2 Penetration Max . | . . . Secondary Targets 1 | . 1 . Max Gunslinging Chain 1 | . 1 . Shots Hit Robots 24 | . 19 5 Core Hits 18 | 1 14 3 Critical Kills . | . . . Critical Parts Destroyed . | . . . Critical Strikes . | . . . Melee Attacks . | . . . Impact . | . . . Slashing . | . . . Piercing . | . . . Sneak Attacks . | . . . Combat Hostiles . | . . . Follow-up Attacks . | . . . Damage Inflicted 1215 | 13 1148 54 Guns 360 | . 306 54 Cannons . | . . . Explosions 842 | . 842 . Melee . | . . . Ramming 13 | 13 . . Kinetic 226 | . 172 54 Thermal 842 | . 842 . Explosive . | . . . Electromagnetic 134 | . 134 . Impact . | . . . Slashing . | . . . Piercing . | . . . Highest Corruption 5 | . . 5 Average Corruption 5 | . . 5 Corruption Purged . | . . . Corruption Blocked . | . . . Overload Shots . | . . . Overflow Damage 83 | . 83 . Projectiles . | . . . Explosions 83 | . 83 . Melee . | . . . Knockbacks . | . . . Impact . | . . . Kinetic . | . . . Secondary . | . . . Self-Inflicted Damage 128 | . 128 . Shots 2 | . 2 . Rammed 5 | 4 1 . Targets Rammed 5 | 4 1 . Kicked . | . . . Crushed . | . . . Highest Temperature 124 | . 124 16 Average Temperature 36 | . 41 6 Received Heat Transfer 203 | . 90 113 Siege Activations . | . . . Robots Corrupted . | . . . Combat Hostiles . | . . . Parts Fried . | . . . Impact Corruptions . | . . . Robots Melted . | . . . Combat Hostiles . | . . . Parts Melted . | . . . Heat Transferred 550 | . 550 . Parts Sabotaged . | . . . Parts Stolen . | . . . Parts Stripped . | . . . Power Chain Reactions 1 | . 1 . Alert | -11 -10 -10 ------- Run | Yrd Mat Min Peak Influence 334 | . 334 223 Initial 77 | . . 77 Average 200 | . 237 131 Maximum Alert Level 1 | . 1 1 Low Security (%) 38 | 100 24 78 Level 1 61 | . 75 21 Level 2 . | . . . Level 3 . | . . . Level 4 . | . . . Level 5 . | . . . High Security . | . . . Max Security . | . . . Squads Dispatched 4 | . 3 1 Investigation 1 | . 1 . Extermination . | . . . Reinforcement 2 | . 2 . Assault 1 | . . 1 Garrison . | . . . Intercept . | . . . Searches Triggered . | . . . Construction Impeded . | . . . Haulers Reinforced . | . . . Active Scanning Responses . | . . . Cargo Convoy Interrupts . | . . . Stealth | -11 -10 -10 --------- Run | Yrd Mat Min Distress Signals . | . . . Communications Jammed . | . . . Distress Signals . | . . . Times Spotted 45 | . 22 23 Peak Tracking Total 22 | . 6 22 Tactical Retreats 10 | . 10 . Traps | -11 -10 -10 ------- Run | Yrd Mat Min Traps Triggered 3 | . 3 . Indirectly . | . . . Trap Hack Attempts . | . . . Triggered . | . . . Disarmed . | . . . Reprogrammed . | . . . Reused . | . . . Traps Extracted . | . . . Installed . | . . . Triggered . | . . . Machines | -11 -10 -10 ---------- Run | Yrd Mat Min Machines Disabled 4 | . 4 . Max in Single Turn 4 | . 4 . Machines Repaired . | . . . Machines Dismantled . | . . . Machines Sabotaged 1 | . 1 . Overloaded Fab Kills . | . . . Hacking | -11 -10 -10 --------- Run | Yrd Mat Min Machines Accessed 3 | . 3 . Terminals 3 | . 3 . Fabricators . | . . . Repair Stations . | . . . Recycling Units . | . . . Scanalyzers . | . . . Garrison Access . | . . . Total Hacks 8 | . 8 . Successful 4 | . 4 . Failed 4 | . 4 . Catastrophic . | . . . Database Lockouts . | . . . Manual 7 | . 7 . Terminals 8 | . 8 . Fabricators . | . . . Repair Stations . | . . . Recycling Units . | . . . Scanalyzers . | . . . Garrison Access . | . . . Terminal Hacks 3 | . 3 . Prototype ID Bank 1 | . 1 . Branch Access Points 1 | . 1 . Hauler Manifests 1 | . 1 . Fabricator Hacks . | . . . Repair Station Hacks . | . . . Recycling Unit Hacks . | . . . Scanalyzer . | . . . Garrison Access Hacks . | . . . Unauthorized Hacks 1 | . 1 . Terminals 1 | . 1 . Sabotage 1 | . 1 . Fabricators . | . . . Repair Stations . | . . . Recycling Units . | . . . Scanalyzers . | . . . Garrison Access . | . . . Data Cores Recovered 1 | . 1 . Used . | . . . Hacking Detections 3 | . 3 . Full Trace Events . | . . . Feedback Events . | . . . Feedback Blocked . | . . . Robot Schematics Acquired . | . . . Robots Built . | . . . Authchips . | . . . Time . | . . . Total Robot Build Rating . | . . . Part Schematics Acquired . | . . . Parts Built . | . . . Authchips . | . . . Time . | . . . Total Part Build Rating . | . . . Parts Repaired . | . . . Time . | . . . Parts Recycled . | . . . Recycled Matter . | . . . Retrieved Matter . | . . . Retrieved Components . | . . . Parts Scanalyzed . | . . . Part Schematics Acquired . | . . . Parts Damaged . | . . . Bothacking | -11 -10 -10 ------------ Run | Yrd Mat Min Used RIF Installer . | . . . Robots Hacked . | . . . Non-combat . | . . . Combat . | . . . Robot Hacks Applied . | . . . Relay Couplers Released . | . . . Fabnet Peak Effective % . | . . . Robots Rewired . | . . . Allies Hacked . | . . . Hacks Repelled . | . . . Allies | -11 -10 -10 -------- Run | Yrd Mat Min Total Allies 1 | . . 1 Largest Group 1 | . . 1 Highest-Rated Group 31 | . . 31 Highest-Rated Ally 31 | . . 31 Total Orders . | . . . Ally Attacks 13 | . . 13 Total Damage 232 | . . 232 Kills 6 | . . 6 Allies Corrupted . | . . . Allies Melted . | . . . Intel | -11 -10 -10 ------- Run | Yrd Mat Min Robot Analysis Total . | . . . Derelict Logs Recovered 1 | . . 1 Drone Launches . | . . . Drone Recoveries . | . . . Exploration | -11 -10 -10 ------------- Run | Yrd Mat Min Turns Passed 1067 | 111 835 121 Spaces Moved 539 | 62 410 67 Core 20 | 14 2 4 Treads 519 | 48 408 63 Legs . | . . . Wheels . | . . . Hover . | . . . Flight . | . . . Fastest Speed 50 | 50 160 50 Average Speed 171 | 136 178 156 Slowest Speed 500 | 160 500 160 Overloaded Moves . | . . . Propulsion Burnouts . | . . . Robots Hopped . | . . . Cave-ins Triggered . | . . . Exploration Rate (%) 26 | 5 49 24 Regions Visited 2 Branch Regions 1 Pre-discovered Areas . | . . . Known Exits Taken 1 | . 1 . Unknown Exits Taken 1 | 1 . . Scrap Searched . | . . . Spaces Dug . | . . . Terrain Destroyed 35 | . 35 . Melee . | . . . Projectile . | . . . AOE 35 | . 35 . Terrain Rammed . | . . . Walls Destroyed . | . . . Machines Disabled . | . . . Actions | -11 -10 -10 --------- Run | Yrd Mat Min Total 622 | 83 465 74 Wait 14 | 9 3 2 Move 537 | 61 409 67 Hop . | . . . Pick Up 11 | 1 10 . Fast Attach 16 | 7 9 . Attach 2 | . 2 . Detach 4 | 1 3 . Swap 2 | . 2 . Drop 4 | . 4 . Fire 27 | . 22 5 Melee . | . . . Ram . | . . . Kick . | . . . Crush 5 | 4 1 . Escape Stasis . | . . . Rewire . | . . . Trap . | . . . Miscellaneous . | . . . Route ------- -11/Scrapyard -10/Materials (discovered 3 exits: [*Mat] / *Min x2) -10/Mines History --------- Turn | Location | Event 12 | -11/Scrapyard | Discovered new exit (range 16) 112 | -11/Scrapyard | Entered Materials 124 | -10/Materials | Identified exit to Mines 222 | -10/Materials | Discovered new exit (range 14) 310 | -10/Materials | Build established: Mutant 947 | -10/Materials | Entered Mines 948 | -10/Mines | Met a Derelict testing a Signal Generator 948 | -10/Mines | Met a Derelict bent on vengeance 1011 | -10/Mines | Learned Materials stockpile data 1052 | -10/Mines | Assembled infested the area 1067 | -10/Mines | Core integrity fell below 50% 1068 | -10/Mines | Core integrity fell below 20% 1068 | -10/Mines | Destroyed by D-53 Grenadier with Mini Grenade Launcher Last Messages --------------- Critical hit (Burn: +37). Lgt. Treads destroyed. ALERT: Infestation in the mines, dispatching Demolisher response squad. [Achievement: Hunted] C-30 ARC bursts open, deploying its payload. D-53 Grenadier unfolds itself. Lgt. Treads destroyed. Targeting Computer destroyed. System corrupted by crushing effect (+5). M-13 Machinist repairs G-47 Trooper. K-01 Serf collects debris. Ion Engine destroyed. as-46713 destroyed. as-41019 destroyed. K-01 Serf collects debris. Assault Rifle destroyed. as-20961 destroyed. Lgt. Assault Rifle destroyed. as-52219 destroyed. Map ----- +----------------------------------------------------+ | ##????# #?????????????????????????????????????? | | ###?????# #?????????????????????????????????????? | | ????????# #?????????????????????????????????????? | | ????##### #?????????????????????????????????????? | | ????# #?????????????????????????????????????? | | ????## #?????????????????????????????????????? | | ?????#### #??????###????????????????????????????? | | ????????# #?????# ##???????????????????????????? | | ????????# #????? #???????????????????????????? | | ?????##?# #????? ##?????#????????????????????? | | ????## # ###?## #### ##???????????????????? | | ????# ### #???????????????????? | | ????# ???????????????????? | | ????## ?????????????????????? | | ?????#### ## ##????????????????????????? | | ????????# ##### ##??????????????????????????????? | | ????????# #???# #???????????????????????????????? | | ????????# #???# #???????????????????????????????? | | ????????# #???# #???????????????????????????????? | | ????????# #???# #???????????????????????????????? | | ????????# ????# #???#######?????????????????????? | | ????????# ????# #???# ###???????????????????? | | ????????# ????# #??## #???????????????????? | | ????????# ????# #??# ##??????????????????? | | ????????# ?#### #### ##########?????????? | | ????????# ?# d@ % a a a ??????? | | ????????# ?# k d aa a a a ??????? | | ????????????# ### ##### ###??????????? | | ????????????# ??## g #??????????????????? | | ????????????#????## g## ###??????????????????? | | ??????????????????## #?##????????????????????? | | ???????????????????## #???????????????????????? | | ???????????????????## m #???????????????????????? | | ???????????????????# ##?????????? ##????????? | | ???????????????????# ##????? ???????? | | ???????????????????## ## #?????????? | | ????????????????????#### #??????????? | | ???????????????????????## #???????????? | | ????????????????????????# ##???????????? | | ????????????????????????## ##????????????? | | ?????????????????????????## #####?????????????? | | ???????????????????????????# ##?????????????????? | | ????????????????????????????###??????????????????? | | ?????????????????????????????????????????????????? | | ?????????????????????????????????????????????????? | | ?????????????????????????????????????????????????? | | ?????????????????????????????????????????????????? | | ?????????????????????????????????????????????????? | | ?????????????????????????????????????????????????? | | ?????????????????????????????????????????????????? | +----------------------------------------------------+ Best States ------------- Heat Dissipation 25 Energy Generation 10 Energy Capacity 250 Matter Stores 258 Matter Capacity 300 Sight Range 16 Terrain Scan Density 10 Armor Coverage 150 Evasion (%) 40 Targeting Accuracy 10 Recoil Reduction 2 Item Schematics ----------------- None Robot Schematics ------------------ None Fabricated ------------ Nothing Alien Tech Used ----------------- None Achievements -------------- Brute Force Hunted Challenges ------------ None Game ------ Seed ControlXenonSaw Manual? 0 Play Time 00:15:27 Cumulative 7.4 hours Start 2024.07.24 @ 11:44:03 End 2024.07.24 @ 11:58:22 Sessions 1 Manual Loads 0 Difficulty Rogue Special Mode None Game No. 13 Rogue 13 Adventurer 0 Explorer 0 Win Type - Total 0 Types 0/0/0/0/0/0/0/0/0 Lore% 12 Gallery% 11 Achievement% 12 Wizard Run 0 Options --------- Layout 1 ASCII 0 Keyboard 1 Movement Numpad Keybinds 0 Fullscreen 1 Font 16/SmallcapsGlow Map View 50x35 Zoom Use 0% Tactical HUD 0 Map Filters NONE Filters NONE Steam SD RUN: 206bf908-9cce-4231-948e-1e01baa3bb27